bitfinex/quotes_ETHUSD_20250801
["timestamp","ask_amount","ask_price","bid_price","bid_amount"]
[1754089690652,2.88402202,3467.4,3466.8,0.144]
[1754089690851,3.35759574,3467.5,3467.3,0.144]
[1754089691277,3.02779357,3467.7,3467.3,0.144]
[1754089691278,2.8840053,3467.4,3467.3,0.144]
[1754089691454,3.3576053,3467.4,3467.3,0.144]
[1754089691777,0.144,3467.7,3467.3,0.144]
[1754089691954,2.88372973,3467.8,3467.3,0.144]
[1754089692151,4.1343044,3467.9,3467.6,0.144]
[1754089692383,1.72429074,3467.9,3467.6,0.144]
[1754089692682,1.72429074,3467.9,3466.8,4.9]
[1754089692683,0.001,3468.0,3467.8,0.144]
[1754089693083,0.001,3468.0,3467.9,3.02758949]
[1754089693253,0.001,3468.0,3467.9,0.144]
[1754089694776,2.88423431,3467.2,3466.1,5.3883]
[1754089694981,2.88386271,3467.6,3466.9,2.88439445]
[1754089695182,2.88393258,3467.5,3466.8,2.88448371]
[1754089695368,2.88393258,3467.5,3466.8,2.91332875]
[1754089695550,2.88386673,3467.6,3466.9,2.88441153]
[1754089695745,0.9409,3468.0,3467.0,0.02884338]
[1754089695951,0.001,3468.0,3467.0,0.51914338]
[1754089696150,0.001,3468.0,3467.3,2.88403264]
[1754089696453,0.001,3468.0,3467.7,2.88372197]
[1754089696757,0.001,3468.0,3467.9,2.88358949]
[1754089697064,0.001,3468.0,3467.5,2.88390658]
[1754089697275,0.001,3468.0,3467.9,2.88358949]
[1754089697690,0.001,3468.0,3467.9,3.37388949]
[1754089698954,0.001,3468.0,3467.9,2.88358949]
[1754089699747,0.001,3468.0,3467.9,7.41425291]
[1754089699978,0.001,3468.0,3467.9,6.95061702]
[1754089700290,0.001,3468.0,3467.9,11.84661702]
[1754089700450,0.001,3468.0,3467.9,12.28141702]
[1754089700852,0.89216066,3469.2,3468.9,2.88274297]
[1754089701093,0.89216066,3469.2,3468.7,0.02882924]
[1754089701290,0.89216066,3469.2,3469.0,2.88261062]
[1754089701461,0.89216066,3469.2,3469.1,2.88259202]
[1754089701788,0.001,3469.3,3469.2,2.88250893]
[1754089701979,0.001,3469.3,3469.2,3.80760893]
[1754089702287,0.001,3469.3,3469.2,8.25430381]
[1754089702688,1e-08,3469.3,3469.2,8.25430381]
[1754089703700,1e-08,3469.3,3469.2,12.71250381]
[1754089703867,1e-08,3469.3,3469.2,13.14730381]
[1754089704267,1e-08,3469.3,3469.2,4.93699488]
[1754089704466,1e-08,3469.3,3469.2,2.88250893]
[1754089704667,1e-08,3469.3,3469.2,3.02650893]
[1754089704924,1e-08,3469.3,3469.2,3.54563401]
[1754089705062,1e-08,3469.3,3469.2,6.98043401]
[1754089705271,1e-08,3469.3,3469.2,8.4272126]
[1754089705686,1e-08,3469.3,3469.2,7.9924126]
[1754089705895,1e-08,3469.3,3469.2,12.3941126]
[1754089706169,1e-08,3469.3,3469.2,10.91750893]
[1754089706409,1e-08,3469.3,3469.2,6.02650893]
[1754089706609,1e-08,3469.3,3469.2,10.91750893]
[1754089707265,1e-08,3469.3,3469.2,6.02650893]
[1754089707494,1e-08,3469.3,3469.2,10.91750893]
[1754089707689,3.82234798,3469.3,3468.6,4.89]
[1754089707866,2.88250998,3469.2,3468.6,7.77295922]
[1754089708086,1.61036729,3469.2,3468.2,4.89]
[1754089708276,0.9399,3469.2,3468.3,3.02883256]
[1754089708618,1e-08,3469.3,3468.0,2.88342809]
[1754089708619,2.88295085,3468.7,3468.0,2.88342809]
[1754089708780,0.51,3468.8,3468.4,2.88312485]
[1754089708984,0.9399,3468.7,3468.3,3.0]
[1754089709185,0.9399,3468.7,3468.5,2.88307194]
[1754089709504,0.9399,3468.7,3468.4,2.88314386]
[1754089709705,0.9399,3468.7,3468.5,2.88308225]
[1754089709907,1e-08,3469.3,3468.9,2.88274197]
[1754089710220,1e-08,3469.3,3468.5,6.28346397]
[1754089710419,0.51000001,3469.3,3468.8,2.88278939]
[1754089710572,0.51000001,3469.3,3468.9,2.88273686]
[1754089710876,0.51000001,3469.3,3469.0,2.8826229]
[1754089711104,0.51000001,3469.3,3468.5,6.25463307]
[1754089711342,0.51,3469.2,3468.5,6.25463307]
[1754089711511,0.42990001,3469.3,3468.5,6.25463307]
[1754089711512,1e-08,3469.3,3468.6,4.21378328]
[1754089711846,1e-08,3469.3,3469.2,2.88250893]
[1754089712902,0.93990001,3469.3,3468.9,2.88269941]
[1754089713144,1e-08,3469.3,3469.2,2.88250893]
[1754089713356,1e-08,3469.3,3469.2,3.45902698]
[1754089713578,1e-08,3469.3,3469.2,6.94932698]
[1754089714012,1e-08,3469.3,3469.2,7.38412698]
[1754089714403,1e-08,3469.3,3469.2,6.94932698]
[1754089715021,1e-08,3469.3,3469.2,5.88250893]
[1754089715545,1e-08,3469.3,3469.2,6.37280893]
[1754089715743,1e-08,3469.3,3469.2,6.80760893]
[1754089716101,1e-08,3469.7,3469.6,2.88217661]
[1754089716302,1e-08,3469.7,3469.6,11.64463686]
[1754089716530,1e-08,3469.7,3469.6,12.56973686]
[1754089717306,1e-08,3469.7,3469.6,13.52268666]
[1754089718046,1e-08,3469.7,3469.6,13.66668666]
[1754089718634,1e-08,3469.7,3469.6,14.0791249]
[1754089718933,1e-08,3469.7,3469.6,36.9095999]
[1754089720235,1e-08,3469.7,3469.6,36.9075999]
[1754089721626,1e-08,3469.7,3469.6,15.1299159]
[1754089721828,1e-08,3469.7,3469.6,16.4912909]
[1754089722340,1e-08,3469.7,3469.6,16.7083608]
[1754089722705,3.02336222,3473.0,3469.6,16.7083608]
[1754089722706,0.9399,3472.6,3469.8,0.55]
[1754089722902,0.51,3472.5,3471.3,3.0]
[1754089723129,0.51,3472.5,3471.5,3.0]
[1754089723448,0.51,3472.5,3472.4,2.87985255]
[1754089723747,3.02311109,3473.3,3472.5,2.87976961]
[1754089723748,0.4299,3473.0,3472.5,2.87976961]
[1754089723916,0.4299,3472.8,3472.7,2.87955138]
[1754089724117,0.4299,3472.8,3472.7,3.02360376]
[1754089724311,0.9484,3472.8,3472.7,3.02360376]
[1754089724945,0.001,3473.6,3472.7,3.02360376]
[1754089724946,0.5195,3473.2,3473.1,2.87927212]
[1754089725149,0.5195,3473.2,3473.1,3.02327212]
[1754089725150,0.001,3473.2,3473.1,3.02327212]
[1754089725725,0.9582,3473.2,3473.1,0.144]
[1754089725922,3.83738922,3473.2,3473.1,0.144]
[1754089726120,2.17984353,3473.2,3472.9,0.144]
[1754089726352,0.9572,3473.1,3472.8,2.87946696]
[1754089726649,2.87940963,3473.0,3472.5,4.88]
[1754089726948,0.9572,3472.9,3472.5,7.75976208]
[1754089727244,0.9572,3472.8,3472.5,7.75976854]
[1754089727408,0.9572,3472.7,3472.5,4.88]
[1754089727750,0.9572,3472.6,3472.5,4.878]
[1754089728248,0.5185,3473.0,3472.6,2.87968669]
[1754089728544,0.5185,3473.0,3472.9,2.87943793]
[1754089728745,0.001,3473.2,3472.9,0.144]
[1754089729251,0.001,3473.2,3473.1,0.144]
[1754089729922,0.9582,3473.2,3473.1,0.144]
[1754089730123,0.001,3473.2,3473.1,11.978356]
[1754089730749,0.001,3473.2,3473.1,11.834356]
[1754089730948,0.001,3473.2,3473.1,11.978356]
[1754089731649,0.9572,3474.8,3473.4,0.55]
[1754089731969,0.9572,3474.8,3474.5,2.87809756]
[1754089732132,0.001,3475.0,3474.5,4.876]
[1754089732319,0.9072,3474.9,3474.0,4.875]
[1754089732521,0.5185,3474.8,3474.6,0.144]
[1754089732728,0.5185,3474.8,3473.9,4.875]
[1754089732729,2.87814844,3474.5,3473.9,4.875]
[1754089732932,0.55,3474.3,3472.5,0.5234]
[1754089733133,0.5185,3474.2,3473.2,4.875]
[1754089733333,0.5185,3474.2,3473.3,3.0]
[1754089733554,0.5185,3474.2,3473.3,5.87909449]
[1754089733555,2.87844333,3474.1,3473.3,5.87909449]
[1754089733764,2.87861972,3473.9,3473.8,0.144]
[1754089734068,2.87861972,3473.9,3468.9,0.49584474]
[1754089734069,0.5757063,3473.9,3473.7,0.144]
[1754089734275,2.87862349,3473.9,3473.7,0.144]
[1754089734561,0.55,3473.7,3473.1,0.144]
[1754089734719,2.8789622,3473.5,3473.1,0.144]
[1754089734926,0.9572,3473.4,3473.1,0.144]
[1754089735355,2.87918922,3473.2,3473.1,0.144]
[1754089735538,0.144,3473.6,3473.5,2.87894054]
[1754089735846,0.5185,3474.2,3473.4,2.87902343]
[1754089736029,0.5185,3474.2,3473.9,2.8785325]
[1754089736366,0.9572,3474.1,3474.0,3.02250832]
[1754089736861,0.5185,3474.5,3474.4,2.87819479]
[1754089737062,0.145,3475.0,3474.5,2.8781024]
[1754089737313,0.001,3475.0,3474.4,0.144]
[1754089737556,0.001,3475.0,3474.9,2.87778065]
[1754089737722,0.001,3475.0,3474.9,0.144]
[1754089737927,0.5195,3475.0,3474.9,0.144]
[1754089738128,0.9582,3475.0,3474.9,0.144]
[1754089738327,0.9582,3475.0,3473.7,3.0]
[1754089738547,2.87805488,3474.6,3473.6,3.0]
[1754089738862,2.87805488,3474.6,3473.5,4.873]
[1754089738863,0.9572,3474.5,3473.5,3.0]
[1754089739048,1.5072,3474.4,3473.8,2.87861319]
[1754089739221,0.55,3474.2,3472.6,3.36983074]
[1754089739425,2.87870155,3473.8,3473.1,2.87924628]
[1754089739723,0.9572,3474.1,3472.7,3.0]
[1754089739724,0.9572,3473.7,3472.7,3.0]
[1754089739927,0.9572,3473.7,3472.6,0.49017977]
[1754089740156,0.55,3473.6,3472.3,5.3944]
[1754089740459,4.5072,3473.6,3470.9,0.864896]
[1754089740621,0.55,3471.8,3470.9,0.864896]
[1754089740826,3.0,3472.9,3470.1,4.871]
[1754089740827,0.9572,3471.7,3470.1,4.871]
[1754089741069,1.5072,3471.6,3470.2,0.4871]
[1754089741252,0.9572,3471.6,3470.4,3.0]
[1754089741488,0.9572,3471.6,3470.2,0.4871]
[1754089741847,4.38780809,3471.5,3470.2,0.4871]
[1754089742042,1.5072,3471.5,3470.2,0.4871]
[1754089742297,1.5072,3471.5,3470.8,2.88113532]
[1754089742476,13.53127938,3472.4,3470.3,0.82397939]
[1754089742477,2.87943793,3472.9,3471.4,2.88068214]
[1754089742649,0.4387,3471.9,3470.8,3.0]
[1754089742846,0.5185,3472.2,3470.8,3.0]
[1754089742847,0.5185,3472.2,3471.8,2.88033596]
[1754089743047,0.9572,3472.1,3471.8,2.88033596]
[1754089743293,0.9572,3472.0,3471.8,2.88033596]
[1754089743495,0.9572,3472.0,3471.0,3.0]
[1754089743656,5.8587,3472.5,3471.8,2.88029316]
[1754089743997,0.55,3472.3,3472.0,2.88017445]
[1754089744177,0.9572,3473.4,3472.1,2.88010137]
[1754089744359,0.9572,3473.4,3472.9,2.87937989]
[1754089744565,0.9572,3473.3,3472.9,2.87937989]
[1754089744767,4.87,3473.8,3472.3,2.87993548]
[1754089744768,5.8272,3473.8,3472.3,2.87993548]
[1754089744961,5.8272,3473.8,3473.4,2.87900282]
[1754089745200,0.9572,3473.7,3472.4,4.17146355]
[1754089745376,0.9572,3473.7,3472.6,3.0]
[1754089745552,0.9572,3473.7,3473.4,2.87894445]
[1754089745751,0.5185,3473.6,3473.5,2.87892238]
[1754089745954,0.90567,3474.0,3473.6,2.87885766]
[1754089746189,0.5185,3473.9,3473.5,2.87891594]
[1754089746495,0.90567,3474.0,3473.7,2.87876011]
[1754089746667,0.90567,3474.0,3473.8,2.87868131]
[1754089746862,0.55,3474.2,3473.6,2.87885679]
[1754089747191,0.55,3474.2,3473.7,2.87877479]
[1754089747394,0.9572,3474.6,3472.8,5.87952084]
[1754089747583,0.9572,3474.6,3474.2,2.87829347]
[1754089747780,0.9572,3474.6,3473.1,0.9647]
[1754089747781,0.9572,3474.6,3474.1,2.87841549]
[1754089747976,0.9572,3474.6,3474.0,2.87851681]
[1754089748176,0.5185,3474.0,3473.8,2.87864587]
[1754089748378,0.9572,3473.9,3473.4,2.87900605]
[1754089748597,0.9572,3473.9,3473.5,0.144]
[1754089750068,0.9572,3473.9,3473.5,3.02293046]
[1754089750273,0.9572,3473.9,3473.5,0.144]
[1754089750488,0.5185,3473.8,3473.5,0.144]
[1754089750714,0.9572,3473.8,3473.5,0.144]
[1754089751418,5.013,3474.0,3473.5,0.144]
[1754089751419,5.418,3473.9,3473.5,0.144]
[1754089751577,0.55,3473.9,3473.5,0.144]
[1754089751780,5.418,3473.9,3473.6,2.87878258]
[1754089752222,0.001,3474.2,3474.1,2.87844333]
[1754089752574,0.001,3474.2,3474.1,3.02244333]
[1754089755000,0.001,3474.2,3474.1,3.50404333]
[1754089755299,0.001,3474.2,3474.1,6.95434333]
[1754089755608,0.001,3474.2,3474.1,7.94051012]
[1754089756212,0.001,3474.2,3474.1,6.02244333]
[1754089756416,0.9616,3474.2,3474.1,0.144]
[1754089756990,0.9616,3474.2,3473.8,0.144]
[1754089756991,4.38996168,3474.2,3473.8,0.144]
[1754089757205,1.5116,3474.2,3473.8,0.144]
[1754089757787,0.9606,3474.1,3473.8,0.144]
[1754089758186,0.4907,3474.0,3473.8,0.144]
[1754089758498,0.4699,3474.1,3473.8,0.144]
[1754089758816,0.001,3474.2,3473.8,0.144]
[1754089759017,0.001,3474.2,3474.1,2.87844333]
[1754089759181,0.001,3474.2,3474.0,0.144]
[1754089759716,0.9606,3474.1,3474.0,0.144]
[1754089759916,0.9606,3474.1,3473.5,3.0]
[1754089760123,0.9606,3474.1,3473.8,0.144]
[1754089760124,3.8390697,3474.1,3473.8,0.144]
[1754089760287,0.9606,3474.1,3473.8,0.144]
[1754089760488,0.001,3474.2,3473.2,3.0]
[1754089760688,3.36917026,3474.1,3473.8,0.144]
[1754089760887,0.4907,3474.0,3473.8,0.144]
[1754089761223,2.87844333,3474.1,3473.8,0.144]
[1754089761425,0.9606,3474.0,3473.2,3.0]
[1754089761631,2.87863644,3473.9,3473.6,0.144]
[1754089761796,3.02247108,3474.1,3473.6,0.144]
[1754089761986,0.4699,3473.9,3473.6,0.144]
[1754089762825,0.9606,3473.9,3473.6,0.144]
[1754089763190,0.55,3474.0,3473.6,0.144]
[1754089763389,0.001,3474.2,3474.0,2.87852619]
[1754089764225,0.001,3474.2,3474.1,0.144]
[1754089764410,0.001,3474.2,3474.1,2.87844333]
[1754089764623,0.001,3474.2,3474.1,3.02244333]
[1754089765207,0.001,3474.2,3474.1,0.144]
[1754089765806,4.38996048,3474.2,3474.1,0.144]
[1754089766054,3.42849061,3474.1,3473.8,0.144]
[1754089766204,0.001,3474.2,3474.1,2.87844333]
[1754089766807,0.001,3474.2,3474.1,6.83912776]
[1754089767021,0.001,3475.0,3474.9,2.87778065]
[1754089767244,0.001,3475.0,3474.9,3.02178065]
[1754089767906,0.001,3475.0,3474.9,0.144]
[1754089768106,3.83929784,3475.0,3474.9,0.144]
[1754089768333,2.87780931,3474.9,3474.6,0.144]
[1754089768641,0.55,3474.7,3474.0,3.0]
[1754089768839,0.55,3474.7,3474.3,0.144]
[1754089769049,2.87812224,3474.5,3474.3,0.144]
[1754089769247,0.55,3474.7,3474.3,0.144]
[1754089769444,0.9606,3474.5,3474.3,0.144]
[1754089769653,2.87819479,3474.4,3474.3,0.144]
[1754089769864,3.83879479,3474.4,3474.3,0.144]
[1754089770041,3.83879479,3474.4,3473.5,0.002]
[1754089770042,2.87831069,3474.3,3473.7,2.87876524]
[1754089770224,2.87831069,3474.3,3474.2,0.144]
[1754089770424,2.87831069,3474.3,3473.5,0.002]
[1754089770425,0.55,3474.2,3473.5,0.002]
[1754089770619,2.87852025,3474.1,3473.8,0.144]
[1754089770853,1.1046,3474.3,3473.8,0.144]
[1754089770854,3.83914067,3474.0,3473.8,0.144]
[1754089771167,0.9606,3474.0,3473.8,0.144]
[1754089771645,0.144,3474.3,3474.2,2.87836048]
[1754089771845,4.8475,3475.0,3474.3,2.87820267]
[1754089772052,4.8475,3475.0,3474.4,2.8781858]
[1754089772210,4.8475,3475.0,3474.9,0.144]
[1754089772609,4.8475,3475.0,3474.9,3.02178065]
[1754089772807,4.86,3475.3,3474.9,0.144]
[1754089773048,0.9606,3475.2,3474.9,0.144]
[1754089773314,4.86,3475.1,3474.7,0.144]
[1754089773542,4.86,3475.2,3475.0,0.144]
[1754089773722,2.87761503,3475.1,3475.0,0.144]
[1754089773922,0.55,3475.0,3473.8,3.30248093]
[1754089774126,2.87802912,3474.6,3474.5,0.144]
[1754089774324,2.87834157,3474.3,3473.7,2.87877216]
[1754089774528,2.87836048,3474.2,3473.9,0.144]
[1754089774717,4.86,3474.1,3473.5,0.002]
[1754089774957,2.87852776,3474.0,3473.8,0.144]
[1754089775156,0.6139,3474.3,3473.8,0.144]
[1754089775157,0.144,3474.3,3473.8,0.144]
[1754089775362,3.1697,3475.7,3474.2,0.144]
[1754089775596,0.9606,3475.3,3474.2,0.144]
[1754089775913,0.55,3474.9,3474.5,0.144]
[1754089776113,0.9606,3475.2,3474.7,2.87788444]
[1754089776264,0.9606,3475.1,3474.0,3.0]
[1754089776599,3.9184067,3475.0,3474.2,2.8783113]
[1754089776765,0.55,3474.7,3474.3,3.02224147]
[1754089777108,4.859,3475.1,3474.7,0.144]
[1754089777463,5.003,3475.3,3474.8,2.87785892]
[1754089777663,0.144,3475.3,3475.1,2.87757917]
[1754089777863,0.001,3475.4,3475.0,2.87767709]
[1754089778095,0.001,3475.4,3475.2,0.144]
[1754089780675,0.001,3475.4,3474.8,2.87784314]
[1754089780880,2.87768205,3475.1,3474.4,2.87812614]
[1754089781209,0.145,3475.4,3474.9,0.144]
[1754089781413,0.4709,3475.4,3474.4,0.4816]
[1754089781590,0.55,3475.0,3473.9,5.33134465]
[1754089781788,0.144,3475.1,3474.6,0.144]
[1754089781994,0.55,3475.0,3474.6,0.144]
[1754089782719,0.55,3475.0,3474.7,2.87789167]
[1754089783027,0.55,3475.0,3474.6,0.144]
[1754089783028,0.001,3475.4,3475.3,2.87744942]
[1754089783178,0.001,3475.4,3475.3,3.80934942]
[1754089783532,0.001,3475.4,3475.3,6.80934942]
[1754089783908,0.001,3475.4,3475.3,6.95334942]
[1754089784092,1e-08,3475.4,3475.3,6.95334942]
[1754089784301,1e-08,3475.4,3475.3,8.42213835]
[1754089784493,1e-08,3475.4,3475.3,8.53734635]
[1754089786984,1e-08,3475.4,3475.3,4.49023835]
[1754089787189,1e-08,3475.4,3475.3,7.87744942]
[1754089787392,1e-08,3475.4,3475.3,10.87744942]
[1754089788508,1e-08,3475.4,3475.3,11.35754942]
[1754089788839,1e-08,3475.4,3475.3,11.82964942]
[1754089791220,1e-08,3475.4,3475.3,11.68564942]
[1754089791445,1e-08,3475.4,3475.3,13.17968]
[1754089791603,0.001,3475.8,3475.3,13.17968]
[1754089791604,1e-08,3475.8,3475.7,2.87711827]
[1754089791803,1e-08,3476.1,3476.0,5.87686996]
[1754089791992,1e-08,3476.1,3476.0,10.73086996]
[1754089792192,2.87447181,3478.9,3476.3,2.87662169]
[1754089792406,0.5225,3478.7,3476.5,3.55]
[1754089792626,0.4735,3478.6,3476.7,3.0]
[1754089792923,0.5225,3478.5,3477.1,2.87595985]
[1754089793223,0.5225,3478.5,3476.1,1.623087]
[1754089793224,0.5225,3478.5,3478.4,2.874885]
[1754089793424,0.5225,3478.5,3477.8,4.853]
[1754089793624,0.996,3478.5,3478.3,2.87495304]
[1754089794011,0.996,3478.5,3477.8,4.853]
[1754089794012,0.996,3478.4,3477.8,4.853]
[1754089794198,0.5225,3478.5,3477.2,0.4801]
[1754089794402,0.5225,3478.5,3477.4,3.0]
[1754089794663,0.5225,3478.5,3477.4,4.16809228]
[1754089794944,0.996,3478.6,3478.2,2.87497119]
[1754089795136,2.87453437,3478.9,3478.0,2.87514689]
[1754089795137,2.8747104,3478.7,3478.0,2.87514689]
[1754089795311,2.874885,3478.4,3477.7,4.853]
[1754089795511,2.87496765,3478.3,3477.7,4.853]
[1754089795834,0.28965661,3479.0,3477.4,4.853]
[1754089795835,0.55,3478.1,3477.4,4.853]
[1754089796035,0.55,3478.1,3477.5,2.87557278]
[1754089796207,0.996,3478.2,3477.4,7.72868049]
[1754089796407,4.2581686,3478.2,3477.4,4.853]
[1754089796708,1.38310803,3478.2,3477.4,4.853]
[1754089796932,0.55,3478.0,3477.0,0.863711]
[1754089797116,0.996,3477.9,3476.5,4.851]
[1754089797332,0.996,3477.9,3477.3,2.8757375]
[1754089797500,0.5225,3477.9,3477.5,2.8755787]
[1754089797707,0.5225,3477.9,3477.5,2.87557561]
[1754089797913,0.5225,3477.9,3477.0,4.851]
[1754089797914,2.87540491,3477.8,3477.0,4.851]
[1754089798248,3.4255468,3477.6,3476.9,3.0]
[1754089798549,0.996,3477.7,3477.3,2.87579319]
[1754089798709,0.996,3477.7,3476.9,3.02876125]
[1754089798710,0.996,3477.6,3476.9,3.0]
[1754089798907,0.996,3477.6,3477.3,2.87577575]
[1754089799203,0.33975658,3477.9,3477.6,2.87549326]
[1754089799404,5.87451248,3478.9,3476.5,2.87639317]
[1754089799405,0.28965661,3479.0,3477.7,8.20550782]
[1754089799723,0.28965661,3479.0,3477.8,3.4801]
[1754089800024,0.28965661,3479.0,3478.1,3.0]
[1754089800224,0.28965661,3479.0,3478.9,2.87447181]
[1754089800439,0.28965661,3479.0,3477.9,0.4801]
[1754089800601,1.28565661,3479.0,3478.1,3.0]
[1754089800805,0.28965661,3479.0,3478.9,2.87447181]
[1754089801005,0.28965661,3479.0,3478.9,3.01847181]
[1754089801202,1.28565661,3479.0,3478.9,0.144]
[1754089801407,0.28965661,3479.0,3478.9,0.144]
[1754089801842,0.28965661,3479.0,3478.7,2.87456594]
[1754089802036,0.28965661,3479.0,3478.5,4.85]
[1754089802037,0.81215661,3479.0,3478.8,0.144]
[1754089802442,0.81215661,3479.0,3478.8,3.01855218]
[1754089802640,0.28965661,3479.0,3478.9,2.87447181]
[1754089802842,0.81215661,3479.0,3478.8,0.144]
[1754089803148,0.55,3478.8,3478.2,2.87499091]
[1754089803349,0.70575261,3479.0,3478.8,0.144]
[1754089803350,0.28965661,3479.0,3478.8,0.144]
[1754089803709,0.5225,3478.9,3478.8,0.144]
[1754089803910,4.42047181,3478.9,3478.8,0.144]
[1754089804141,3.87047181,3478.9,3478.6,0.144]
[1754089804344,1.546,3478.8,3478.2,2.8750405]
[1754089804647,1.546,3478.8,3478.2,2.87500157]
[1754089804826,1.546,3478.8,3478.2,2.87497565]
[1754089805026,1.546,3478.8,3477.8,3.0]
[1754089805228,1.546,3478.8,3477.7,4.849]
[1754089805229,2.87469597,3478.7,3477.9,2.87523]
[1754089805533,0.28965661,3479.0,3478.0,0.02875215]
[1754089805734,0.55,3478.9,3478.5,2.87474407]
[1754089805949,0.28965661,3479.0,3478.9,2.87447181]
[1754089806246,1e-08,3479.0,3478.9,11.68467181]
[1754089806454,1e-08,3479.0,3478.9,13.43005232]
[1754089806613,1e-08,3479.0,3478.9,3.0]
[1754089806948,1e-08,3479.0,3478.8,3.0]
[1754089807150,1e-08,3479.0,3478.7,5.87455593]
[1754089807450,1e-08,3479.0,3478.9,2.87447181]
[1754089808022,1e-08,3479.0,3478.9,3.35457181]
[1754089808550,1e-08,3479.0,3478.9,2.87447181]
[1754089809323,1e-08,3479.0,3478.9,3.35457181]
[1754089810464,1e-08,3479.0,3478.7,5.87460243]
[1754089810465,1e-08,3479.0,3478.7,3.0]
[1754089810667,0.5225,3478.9,3478.1,3.0]
[1754089810864,0.5225,3478.9,3478.6,2.87466914]
[1754089811064,0.996,3478.8,3478.2,7.73100099]
[1754089811235,0.996,3478.8,3478.2,2.87500099]
[1754089811236,3.87055906,3478.8,3478.2,2.87500099]
[1754089811564,3.9471922,3478.7,3478.0,2.87515079]
[1754089811747,1.25201839,3478.7,3478.2,2.87503303]
[1754089811925,1.25201839,3478.7,3478.2,2.87501778]
[1754089812268,3.87076998,3478.6,3477.9,7.73024866]
[1754089812426,2.87511484,3478.2,3477.5,2.87556955]
[1754089812625,2.874885,3478.4,3477.0,2.87597102]
[1754089812626,2.87553597,3477.7,3477.0,2.87597102]
[1754089812831,0.5225,3477.6,3476.5,4.851]
[1754089813026,0.57499998,3478.1,3476.6,3.98096373]
[1754089813027,0.5225,3478.1,3476.6,3.98096373]
[1754089813342,2.87522914,3478.0,3477.4,2.87569326]
[1754089813664,0.5225,3478.1,3477.2,2.87580563]
[1754089813861,2.87544099,3477.8,3477.1,2.87594568]
[1754089814052,3.34876827,3478.0,3477.3,2.87574113]
[1754089814239,3.34876827,3478.0,3477.4,2.875704]
[1754089814436,0.4735,3478.0,3476.8,1.16304064]
[1754089814640,0.4735,3478.0,3477.7,0.144]
[1754089815767,0.5038,3478.6,3478.3,2.87495467]
[1754089815932,0.5038,3478.6,3478.3,0.144]
[1754089816132,0.5038,3478.6,3478.4,2.8748343]
[1754089816352,0.5038,3478.6,3478.3,0.144]
[1754089816724,1e-08,3479.0,3478.2,2.87505031]
[1754089817028,1e-08,3479.0,3478.5,0.144]
[1754089817382,1e-08,3479.0,3478.7,0.144]
[1754089817539,1e-08,3479.0,3478.9,2.87447181]
[1754089817724,1e-08,3479.0,3478.9,3.01847181]
[1754089818049,1e-08,3479.0,3478.9,4.92803677]
[1754089818441,1e-08,3479.0,3478.9,3.94419206]
[1754089818655,1e-08,3479.0,3478.9,3.01847181]
[1754089819365,0.94550001,3479.0,3478.9,0.144]
[1754089819865,0.55,3478.9,3478.3,3.01891474]
[1754089820029,0.94550001,3479.0,3478.7,2.87462313]
[1754089820230,0.94550001,3479.0,3478.7,0.144]
[1754089820438,0.5038,3478.9,3478.7,0.144]
[1754089820768,2.87480235,3478.5,3478.4,0.144]
[1754089821066,0.9455,3478.5,3478.0,2.87513856]
[1754089821242,1.0895,3478.4,3478.0,2.87513856]
[1754089821572,0.144,3478.4,3478.3,2.87496765]
[1754089821867,0.144,3478.7,3478.2,0.144]
[1754089822171,0.44170001,3479.0,3478.7,2.87463433]
[1754089822484,2.87480713,3478.5,3478.2,0.144]
[1754089822643,0.5038,3478.4,3478.2,0.144]
[1754089822979,0.9455,3478.3,3477.7,2.87545329]
[1754089823125,0.9455,3478.3,3477.8,0.144]
[1754089823331,0.144,3478.4,3477.9,2.87529831]
[1754089823533,0.144,3478.4,3477.8,0.144]
[1754089824043,4.847,3478.8,3478.3,2.87496765]
[1754089824245,2.87502365,3478.3,3477.9,0.144]
[1754089824429,2.87529773,3478.0,3477.7,0.144]
[1754089824628,3.82079773,3478.0,3477.7,0.144]
[1754089825029,3.01911019,3478.2,3477.7,0.144]
[1754089825030,2.87538098,3477.8,3477.7,0.144]
[1754089825465,4.37088098,3477.8,3477.7,0.144]
[1754089825664,2.87570208,3477.5,3476.8,2.8761806]
[1754089825866,0.144,3477.5,3477.0,0.144]
[1754089826069,0.144,3477.5,3477.0,3.02003873]
[1754089826365,0.144,3477.5,3477.0,3.0200377]
[1754089826567,0.144,3477.5,3477.0,3.02003585]
[1754089826757,2.87508704,3478.2,3477.0,3.02003585]
[1754089826758,0.5038,3478.4,3477.1,0.98385959]
[1754089827067,3.3787018,3478.4,3477.7,2.87544229]
[1754089827263,2.87471672,3478.7,3478.1,2.87506778]
[1754089827264,4.847,3478.7,3478.1,2.87506778]
[1754089827468,4.847,3478.7,3478.2,2.87504798]
[1754089827844,4.847,3478.7,3478.1,2.87509829]
[1754089827845,0.5038,3478.6,3478.1,2.87509829]
[1754089828046,1e-08,3479.0,3478.4,2.87483588]
[1754089828246,4.847,3478.9,3477.7,0.4655]
[1754089828482,2.87484813,3478.5,3477.4,0.4896]
[1754089828653,2.8749073,3478.4,3477.7,2.8754404]
[1754089828858,2.87496436,3478.4,3477.7,2.87542999]
[1754089829148,3.37862603,3478.5,3477.8,2.87533249]
[1754089829343,0.5038,3478.5,3477.7,2.87543751]
[1754089829550,0.55,3478.2,3477.1,0.4655]
[1754089829746,0.55,3478.2,3477.1,3.4655]
[1754089830074,2.87520446,3478.1,3477.2,2.87587714]
[1754089830389,3.37900446,3478.1,3477.5,2.87562173]